fUSD/lending_fUSD_20250324
["ID","MTS","AMOUNT","RATE_DAILY","PERIOD"]
[356627572,1742849452354,-552.76263007,0.00046849,120]
[356627573,1742849452364,-500.0,0.00046849,120]
[356627574,1742849452373,-500.0,0.00046849,120]
[356627575,1742849452381,-500.0,0.00046849,120]
[356627576,1742849452391,-514.74226842,0.00046849,120]
[356627577,1742849452400,-525.15691215,0.00046849,120]
[356627578,1742849452409,-582.60771739,0.00046849,120]
[356627579,1742849452419,-500.0,0.00046849,120]
[356627580,1742849452429,-561.87242286,0.00046849,120]
[356627581,1742849452438,-507.07352317,0.00046849,120]
[356627582,1742849452448,-514.30210487,0.00046849,120]
[356627583,1742849452457,-500.0,0.00046849,120]
[356627584,1742849452467,-519.45564136,0.00046849,120]
[356627585,1742849452477,-500.0,0.00046849,120]
[356627586,1742849452487,-500.0,0.00046849,120]
[356627587,1742849452496,-500.0,0.00046849,120]
[356627588,1742849452505,-500.0,0.00046849,120]
[356627589,1742849452515,-562.32092145,0.00046849,120]
[356627590,1742849452525,-549.7982476,0.00046849,120]
[356627591,1742849452534,-1154.52,0.00046849,120]
[356627592,1742849452543,-500.0,0.00046849,30]
[356627593,1742849452552,-500.0,0.00046849,120]
[356627594,1742849452562,-1042.87,0.00046849,120]
[356627595,1742849452571,-500.0,0.00046849,7]
[356627596,1742849452581,-500.0,0.00046849,120]
[356627597,1742849452590,-281.18884191,0.00046849,120]
[356627598,1742849452600,-500.0,0.00046849,120]
[356627599,1742849452612,-500.0,0.00046849,120]
[356627600,1742849452622,-500.0,0.00046849,120]
[356627601,1742849452631,-500.0,0.00046849,120]
[356627602,1742849452640,-500.0,0.00046849,120]
[356627603,1742849452651,-500.0,0.00046849,120]
[356627604,1742849452660,-523.11634711,0.00046849,120]
[356627605,1742849452670,-524.64600767,0.00046849,120]
[356627606,1742849452679,-500.0,0.00046849,7]
[356627607,1742849452690,-513.70055247,0.00046849,120]
[356627608,1742849452700,-1073.02,0.00046849,120]
[356627609,1742849452709,-500.0,0.00046849,120]
[356627610,1742849452718,-491.97,0.00046849,120]
[356627611,1742849452727,-500.0,0.00046849,120]
[356627612,1742849452736,-507.15030649,0.00046849,120]
[356627613,1742849452745,-500.0,0.00046849,120]
[356627614,1742849452754,-500.0,0.00046849,120]
[356627615,1742849452763,-500.0,0.00046849,120]
[356627616,1742849452772,-500.0,0.00046849,120]
[356627617,1742849452781,-249.85592823,0.00046849,120]
[356627618,1742849452790,-500.0,0.00046849,120]
[356627619,1742849452800,-210.77282747,0.00046849,120]
[356627620,1742849452809,-500.0,0.00046849,120]
[356627621,1742849452818,-500.0,0.00046849,120]
[356627622,1742849452827,-500.0,0.00046849,120]
[356627623,1742849452837,-500.0,0.00046849,120]
[356627624,1742849452846,-500.0,0.00046849,120]
[356627625,1742849452856,-209.81401501,0.00046849,120]
[356627626,1742849452865,-584.65912255,0.00046849,120]
[356627627,1742849452875,-500.0,0.00046849,120]
[356627628,1742849452885,-500.0,0.00046849,120]
[356627629,1742849452894,-500.0,0.00046849,120]
[356627630,1742849452904,-500.0,0.00046849,120]
[356627631,1742849452912,-500.0,0.00046849,120]
[356627632,1742849452922,-500.0,0.00046849,120]
[356627633,1742849452931,-500.0,0.00046849,120]
[356627634,1742849452940,-500.0,0.00046849,120]
[356627635,1742849452950,-500.0,0.00046849,120]
[356627636,1742849452959,-500.0,0.00046849,120]
[356627637,1742849452968,-554.4001001,0.00046849,120]
[356627638,1742849452977,-500.0,0.00046849,120]
[356627639,1742849452986,-500.0,0.00046849,120]
[356627640,1742849452995,-500.0,0.00046849,120]
[356627641,1742849453004,-500.0,0.00046849,120]
[356627642,1742849453013,-500.0,0.00046849,120]
[356627643,1742849453023,-500.00789807,0.00046849,120]
[356627644,1742849453032,-500.0,0.00046849,120]
[356627645,1742849453041,-500.0,0.00046849,120]
[356627646,1742849453050,-500.0,0.00046849,120]
[356627647,1742849453060,-300.0,0.00046849,30]
[356627648,1742849453069,-500.0,0.00046849,120]
[356627649,1742849453078,-504.4161283,0.00046849,120]
[356627650,1742849453087,-507.21144768,0.00046849,120]
[356627651,1742849453097,-500.0,0.00046849,120]
[356627652,1742849453106,-445.75810751,0.00046849,120]
[356627653,1742849453118,-500.0,0.00046849,120]
[356627654,1742849453127,-500.0,0.00046849,120]
[356627655,1742849453137,-500.0,0.00046849,120]
[356627656,1742849453147,-175.71356297,0.00046849,120]
[356627657,1742849453157,-500.0,0.00046849,120]
[356627658,1742849453167,-506.81838362,0.00046849,120]
[356627659,1742849453298,-500.0,0.00046849,120]
[356627660,1742849453308,-500.0,0.00046849,120]
[356627661,1742849453318,-500.0,0.00046849,120]
[356627662,1742849453327,-500.0,0.00046849,120]
[356627663,1742849453337,-500.0,0.00046849,120]
[356627664,1742849453347,-236.64827592,0.00046849,120]
[356627665,1742849453356,-500.0,0.00046849,120]
[356627666,1742849453366,-500.0,0.00046849,120]
[356627667,1742849453376,-500.0,0.00046849,120]
[356627668,1742849453385,-500.0,0.00046849,120]
[356627669,1742849453394,-500.0,0.00046849,120]
[356627670,1742849453404,-500.0,0.00046849,120]
[356627671,1742849453414,-500.0,0.00046849,120]
[356627672,1742849453423,-500.0,0.00046849,120]
[356627673,1742849453432,-500.0,0.00046849,120]
[356627674,1742849453442,-556.61864179,0.00046849,120]
[356627675,1742849453451,-500.0,0.00046849,120]
[356627676,1742849453460,-500.0,0.00046849,120]
[356627677,1742849453469,-500.0,0.00046849,120]
[356627678,1742849453478,-500.0,0.00046849,120]
[356627679,1742849453487,-500.0,0.00046849,120]
[356627680,1742849453495,-500.0,0.00046849,120]
[356627681,1742849453505,-504.65553108,0.00046849,120]
[356627682,1742849453513,-556.16283705,0.00046849,120]
[356627683,1742849453523,-500.0,0.00046849,120]
[356627684,1742849453532,-223.356672,0.00046849,120]
[356627685,1742849453541,-500.0,0.00046849,120]
[356627686,1742849453550,-500.0,0.00046849,120]
[356627687,1742849453559,-500.0,0.00046849,120]
[356627688,1742849453569,-500.0,0.00046849,120]
[356627689,1742849453578,-212.34525622,0.00046849,120]
[356627690,1742849453587,-500.0,0.00046849,120]
[356627691,1742849453596,-500.0,0.00046849,120]
[356627692,1742849453606,-500.0,0.00046849,120]
[356627693,1742849453620,-506.97356865,0.00046849,120]
[356627694,1742849453630,-506.01300348,0.00046849,120]
[356627695,1742849453639,-500.0,0.00046849,120]
[356627696,1742849453647,-500.0,0.00046849,120]
[356627697,1742849453657,-500.0,0.00046849,120]
[356627698,1742849453667,-505.18558466,0.00046849,120]
[356627699,1742849453676,-500.0,0.00046849,120]
[356627700,1742849453685,-514.29076685,0.00046849,120]
[356627701,1742849453695,-500.0,0.00046849,120]
[356627702,1742849453705,-509.73247788,0.00046849,30]
[356627703,1742849453714,-500.0,0.00046849,120]
[356627704,1742849453723,-500.0,0.00046849,120]
[356627705,1742849453733,-500.0,0.00046849,120]
[356627706,1742849453742,-500.0,0.00046849,120]
[356627707,1742849453752,-511.51689646,0.00046849,120]
[356627708,1742849453761,-500.0,0.00046849,120]
[356627709,1742849453771,-500.0,0.00046849,120]
[356627710,1742849453780,-500.0,0.00046849,120]
[356627711,1742849453789,-500.0,0.00046849,120]
[356627712,1742849453798,-500.0,0.00046849,120]
[356627713,1742849453807,-500.0,0.00046849,120]
[356627714,1742849453816,-500.0,0.00046849,120]
[356627715,1742849453825,-500.0,0.00046849,120]
[356627716,1742849453835,-500.0,0.00046849,120]
[356627717,1742849453844,-506.49747372,0.00046849,120]
[356627718,1742849453853,-374.22235889,0.00046849,120]
[356627719,1742849453864,-500.0,0.00046849,120]
[356627720,1742849453873,-520.29555217,0.00046849,120]
[356627721,1742849453884,-500.0,0.00046849,120]
[356627722,1742849453893,-513.86492752,0.00046849,120]
[356627723,1742849453902,-520.25966756,0.00046849,120]
[356627724,1742849453911,-500.0,0.00046849,120]
[356627725,1742849453920,-500.0,0.00046849,120]
[356627726,1742849453929,-644.68530655,0.00046849,120]
[356627727,1742849453938,-500.0,0.00046849,120]
[356627728,1742849453947,-529.40649849,0.00046849,120]
[356627729,1742849453956,-609.25627253,0.00046849,120]
[356627730,1742849453965,-500.0,0.00046849,120]
[356627731,1742849453975,-516.8566759,0.00046849,120]
[356627732,1742849453984,-531.71629766,0.00046849,120]
[356627733,1742849453993,-360.98025459,0.00046849,120]
[356627734,1742849454003,-500.0,0.00046849,120]
[356627735,1742849454012,-511.55461787,0.00046849,120]
[356627736,1742849454022,-550.70507983,0.00046849,120]
[356627737,1742849454031,-500.0,0.00046849,120]
[356627738,1742849454040,-500.0,0.00046849,120]
[356627739,1742849454050,-524.18741958,0.00046849,120]
[356627740,1742849454059,-529.27222157,0.00046849,120]
[356627741,1742849454068,-600.38846573,0.00046849,120]
[356627742,1742849454077,-544.21344185,0.00046849,120]
[356627743,1742849454087,-500.0,0.00046849,120]
[356627744,1742849454096,-553.75079705,0.00046849,120]
[356627745,1742849454106,-500.0,0.00046849,120]
[356627746,1742849454117,-500.0,0.00046849,120]
[356627747,1742849454126,-500.0,0.00046849,120]
[356627748,1742849454136,-500.0,0.00046849,120]
[356627749,1742849454146,-500.0,0.00046849,120]
[356627750,1742849454156,-532.0130184,0.00046849,120]
[356627751,1742849454165,-500.0,0.00046849,120]
[356627752,1742849454175,-533.47467351,0.00046849,120]
[356627753,1742849454184,-500.0,0.00046849,120]
[356627754,1742849454194,-500.0,0.00046849,120]
[356627755,1742849454203,-500.0,0.00046849,120]
[356627756,1742849454213,-500.0,0.00046849,120]
[356627757,1742849454222,-500.0,0.00046849,120]
[356627758,1742849454231,-500.0,0.00046849,120]
[356627759,1742849454240,-500.0,0.00046849,120]
[356627760,1742849454249,-500.0,0.00046849,120]
[356627761,1742849454259,-500.0,0.00046849,120]
[356627762,1742849454268,-500.0,0.00046849,120]
[356627763,1742849454276,-500.0,0.00046849,120]
[356627764,1742849454285,-771.39,0.00046849,120]
[356627765,1742849454294,-500.0,0.00046849,120]
[356627766,1742849454303,-522.57394655,0.00046849,120]
[356627767,1742849454313,-500.0,0.00046849,120]
[356627768,1742849454322,-500.0,0.00046849,120]
[356627769,1742849454331,-500.0,0.00046849,120]
[356627770,1742849454341,-517.46949744,0.00046849,120]
[356627771,1742849454350,-500.0,0.00046849,120]
[356627772,1742849454359,-524.77917066,0.00046849,120]
[356627773,1742849454368,-500.0,0.00046849,120]
[356627774,1742849454378,-500.0,0.00046849,120]
[356627775,1742849454387,-630.88967202,0.00046849,120]
[356627776,1742849454398,-500.0,0.00046849,120]
[356627777,1742849454407,-500.0,0.00046849,120]
[356627778,1742849454417,-508.23392578,0.00046849,120]
[356627779,1742849454427,-500.0,0.00046849,120]
[356627780,1742849454436,-500.0,0.00046849,120]
[356627781,1742849454445,-500.0,0.00046849,120]
[356627782,1742849454455,-500.0,0.00046849,120]
[356627783,1742849454464,-500.0,0.00046849,120]
[356627784,1742849454473,-500.0,0.00046849,120]
[356627785,1742849454483,-500.0,0.00046849,120]
[356627786,1742849454492,-500.0,0.00046849,120]
[356627787,1742849454502,-500.0,0.00046849,120]
[356627788,1742849454511,-500.0,0.00046849,120]
[356627789,1742849454520,-500.0,0.00046849,120]
[356627790,1742849454529,-222.04797682,0.00046849,120]
[356627791,1742849454538,-500.0,0.00046849,120]
[356627792,1742849454548,-500.0,0.00046849,120]
[356627793,1742849454558,-500.0,0.00046849,120]
[356627794,1742849454567,-500.0,0.00046849,120]
[356627795,1742849454577,-500.0,0.00046849,120]
[356627796,1742849454586,-500.0,0.00046849,120]
[356627797,1742849454595,-500.0,0.00046849,120]
[356627798,1742849454605,-2067.8118674,0.00046849,30]
[356627799,1742849454619,-250.45944924,0.00046849,120]
[356627800,1742849454629,-500.0,0.00046849,120]
[356627801,1742849454638,-506.10014927,0.00046849,120]
[356627802,1742849454647,-500.0,0.00046849,120]
[356627803,1742849454658,-500.0,0.00046849,120]
[356627804,1742849454668,-1000.0,0.00046849,120]
[356627805,1742849454677,-500.0,0.00046849,120]
[356627806,1742849454687,-500.0,0.00046849,120]
[356627807,1742849454697,-500.0,0.00046849,120]
[356627808,1742849454705,-500.0,0.00046849,120]
[356627809,1742849454715,-500.0,0.00046849,120]
[356627810,1742849454724,-545.22248886,0.00046849,30]
[356627811,1742849454734,-500.0,0.00046849,120]
[356627812,1742849454744,-521.7135213,0.00046849,120]
[356627813,1742849454754,-500.0,0.00046849,120]
[356627814,1742849454763,-500.0,0.00046849,120]
[356627815,1742849454773,-287.05484491,0.00046849,120]
[356627816,1742849454783,-519.12,0.00046849,120]
[356627817,1742849454793,-500.0,0.00046849,120]
[356627818,1742849454802,-500.0,0.00046849,120]
[356627819,1742849454811,-500.0,0.00046849,120]
[356627820,1742849454821,-500.0,0.00046849,120]
[356627821,1742849454831,-2765.97,0.00046849,2]
[356627822,1742849454840,-500.0,0.00046849,7]
[356627823,1742849454849,-500.0,0.00046849,120]
[356627824,1742849454859,-348.0170421,0.00046849,120]
[356627825,1742849454870,-150.0,0.00046864,2]
[356627826,1742849454880,-422.938,0.00046909,78]
[356627827,1742849454890,-805.74012107,0.00047,120]
[356627828,1742849454899,-7059.88753754,0.00047103,3]
[356627829,1742849454923,-606.39044221,0.00047103,3]
[356627830,1742849454935,-21367.53685815,0.00047103,3]
[356627831,1742849454946,-194.55496468,0.00047113,30]
[356627832,1742849454956,-500.0,0.00047123,120]
[356627833,1742849454966,-506.94849606,0.00047123,120]
[356627834,1742849454975,-500.0,0.00047123,120]
[356627835,1742849454984,-639.9395007,0.00047123,120]
[356627836,1742849454994,-516.01303019,0.00047123,120]
[356627837,1742849455003,-500.0,0.00047123,120]
[356627838,1742849455013,-529.81013352,0.00047123,60]
[356627839,1742849455023,-500.0,0.00047123,30]
[356627840,1742849455033,-252.00343587,0.00047123,120]
[356627841,1742849455042,-500.0,0.00047123,120]
[356627842,1742849455051,-500.0,0.00047123,120]
[356627843,1742849455061,-500.0,0.00047123,120]
[356627844,1742849455071,-500.0,0.00047123,2]
[356627845,1742849455080,-500.0,0.00047123,120]
[356627846,1742849455090,-500.0,0.00047123,120]
[356627847,1742849455099,-500.0,0.00047123,120]
[356627848,1742849455109,-500.0,0.00047123,120]
[356627849,1742849455119,-500.0,0.00047123,120]
[356627850,1742849455129,-500.0,0.00047123,120]
[356627851,1742849455139,-534.20367456,0.00047123,120]
[356627852,1742849455149,-500.0,0.00047123,120]
[356627853,1742849455158,-500.0,0.00047123,120]
[356627854,1742849455167,-621.15517605,0.00047123,120]
[356627855,1742849455177,-546.13710156,0.00047123,120]
[356627856,1742849455186,-486.20129436,0.00047123,120]
[356627857,1742849455196,-524.07042762,0.00047123,120]
[356627858,1742849455206,-522.06955447,0.00047123,120]
[356627859,1742849455215,-500.0,0.00047123,120]
[356627860,1742849455225,-500.0,0.00047123,120]
[356627861,1742849455235,-501.06,0.00047123,120]
[356627862,1742849455244,-344.49730671,0.00047123,120]
[356627863,1742849455254,-500.0,0.00047123,120]
[356627864,1742849455263,-196.87029665,0.00047123,120]
[356627865,1742849455272,-500.0,0.00047123,120]
[356627866,1742849455281,-520.39276956,0.00047123,120]
[356627867,1742849455292,-500.0,0.00047123,120]
[356627868,1742849455301,-254.12,0.00047123,120]
[356627869,1742849455310,-543.08107643,0.00047123,120]
[356627870,1742849455320,-523.33012861,0.00047123,120]
[356627871,1742849455329,-1154.52,0.00047123,120]
[356627872,1742849455338,-159.67706671,0.00047123,30]
[356627873,1742849455347,-500.0,0.00047123,120]
[356627874,1742849455356,-1042.87,0.00047123,120]
[356627875,1742849455365,-506.58116114,0.00047123,7]
[356627876,1742849455374,-500.0,0.00047123,120]
[356627877,1742849455383,-500.0,0.00047123,120]
[356627878,1742849455392,-428.13550071,0.00047123,120]
[356627879,1742849455402,-500.0,0.00047123,120]
[356627880,1742849455411,-523.26596778,0.00047123,120]
[356627881,1742849455420,-457.41500047,0.00047123,120]
[356627882,1742849455429,-500.0,0.00047123,120]
[356627883,1742849455438,-500.0,0.00047123,7]
[356627884,1742849455447,-1073.02,0.00047123,120]
[356627885,1742849455456,-500.0,0.00047123,120]
[356627886,1742849455465,-500.0,0.00047123,120]
[356627887,1742849455474,-500.0,0.00047123,120]
[356627888,1742849455483,-500.0,0.00047123,120]
[356627889,1742849455493,-522.68736503,0.00047123,120]
[356627890,1742849455502,-628.74786325,0.00047123,120]
[356627891,1742849455511,-500.0,0.00047123,120]
[356627892,1742849455520,-500.0,0.00047123,120]
[356627893,1742849455530,-500.0,0.00047123,120]
[356627894,1742849455539,-500.0,0.00047123,120]
[356627895,1742849455548,-500.0,0.00047123,120]
[356627896,1742849455558,-500.0,0.00047123,120]
[356627897,1742849455567,-500.0,0.00047123,120]
[356627898,1742849455576,-551.4554159,0.00047123,120]
[356627899,1742849455585,-549.88284768,0.00047123,120]
[356627900,1742849455594,-195.44042566,0.00047123,120]
[356627901,1742849455603,-500.0,0.00047123,120]
[356627902,1742849455616,-500.0,0.00047123,120]
[356627903,1742849455625,-500.0,0.00047123,120]
[356627904,1742849455634,-500.0,0.00047123,120]
[356627905,1742849455643,-500.0,0.00047123,120]
[356627906,1742849455652,-500.0,0.00047123,120]
[356627907,1742849455665,-500.0,0.00047123,120]
[356627908,1742849455674,-500.0,0.00047123,120]
[356627909,1742849455683,-522.17261567,0.00047123,120]
[356627910,1742849455693,-500.0,0.00047123,120]
[356627911,1742849455703,-500.0,0.00047123,120]
[356627912,1742849455712,-500.0,0.00047123,120]
[356627913,1742849455722,-500.0,0.00047123,120]
[356627914,1742849455731,-300.0,0.00047123,30]
[356627915,1742849455741,-500.0,0.00047123,120]
[356627916,1742849455750,-500.0,0.00047123,120]
[356627917,1742849455760,-500.0,0.00047123,120]
[356627918,1742849455769,-500.0,0.00047123,120]
[356627919,1742849455778,-500.0,0.00047123,120]
[356627920,1742849455788,-500.0,0.00047123,120]
[356627921,1742849455797,-500.0,0.00047123,120]
[356627922,1742849455806,-500.0,0.00047123,120]
[356627923,1742849455815,-622.66,0.00047123,120]
[356627924,1742849455825,-500.0,0.00047123,120]
[356627925,1742849455834,-500.0,0.00047123,120]
[356627926,1742849455844,-500.0,0.00047123,120]
[356627927,1742849455853,-500.0,0.00047123,120]
[356627928,1742849455863,-500.0,0.00047123,120]
[356627929,1742849455873,-500.0,0.00047123,120]
[356627930,1742849455882,-500.0,0.00047123,120]
[356627931,1742849455891,-500.0,0.00047123,120]
[356627932,1742849455901,-500.0,0.00047123,120]
[356627933,1742849455910,-500.0,0.00047123,120]
[356627934,1742849455920,-500.0,0.00047123,120]
[356627935,1742849455930,-500.0,0.00047123,120]
[356627936,1742849455939,-500.0,0.00047123,120]
[356627937,1742849455949,-500.0,0.00047123,120]
[356627938,1742849455958,-500.0,0.00047123,120]
[356627939,1742849455968,-500.0,0.00047123,120]
[356627940,1742849455978,-500.0,0.00047123,120]
[356627941,1742849455988,-500.0,0.00047123,120]
[356627942,1742849455997,-500.0,0.00047123,120]
[356627943,1742849456007,-500.0,0.00047123,120]
[356627944,1742849456016,-500.0,0.00047123,120]
[356627945,1742849456026,-500.0,0.00047123,120]
[356627946,1742849456036,-500.0,0.00047123,120]
[356627947,1742849456045,-500.0,0.00047123,120]
[356627948,1742849456054,-500.0,0.00047123,120]
[356627949,1742849456064,-500.0,0.00047123,120]
[356627950,1742849456073,-500.0,0.00047123,120]
[356627951,1742849456083,-441.05968446,0.00047123,120]
[356627952,1742849456212,-58.94031554,0.00047123,120]
[356627953,1742849456223,-229.63862188,0.00047123,120]
[356627954,1742849456235,-270.36137812,0.00047123,120]
[356627955,1742849456244,-159.58179188,0.00047123,120]
[356627956,1742849456255,-344.89150596,0.00047123,120]
[356627957,1742849456265,-111.67243366,0.00047123,120]
[356627961,1742850632046,-161.181,0.00022908,2]
[356627962,1742850632056,-166.756,0.00022908,2]
[356627963,1742850632065,-170.898,0.00022908,2]
[356627964,1742850632075,-1.165,0.00025199,2]
[356628043,1742850639777,-544.38099924,0.00022808,2]
[356628044,1742850640154,-355.76741304,0.00022808,2]
[356628045,1742850640163,-148.835,0.00025199,2]
[356628046,1742850640173,-350.0,0.00025199,3]
[356628047,1742850640183,-150.0,0.00032404,2]
[356628048,1742850640193,-350.0,0.00032404,3]
[356628049,1742850640203,-793.66771246,0.00034062,2]
[356628063,1742850642679,-106.48069982,0.00034062,2]
[356628064,1742850642689,-200.0,0.00034202,2]
[356628065,1742850642699,-169.0,0.00041,14]
[356628066,1742850642708,-121.27280819,0.000419,2]
[356628078,1742850645600,-1878.72719181,0.000419,2]
[356628079,1742850645609,-169.0,0.00043151,90]
[356628080,1742850645618,-1194.0,0.000447,2]
[356628081,1742850645627,-250.0,0.00045214,2]
[356628082,1742850645636,-150.0,0.00045221,2]
[356628083,1742850645646,-1000.0,0.00045235,120]
[356628084,1742850645655,-900.14841228,0.00045316,2]
[356628085,1742850645664,-1000.0,0.00045416,2]
[356628086,1742850645673,-163.01,0.00045424,120]
[356628087,1742850645682,-23900.0,0.00045439,2]
[356628088,1742850645691,-285.92,0.00045511,2]
[356628089,1742850645700,-212.89139342,0.000459,10]
[356628090,1742850645709,-500.0,0.00046041,2]
[356628091,1742850645719,-1033.21572554,0.00046181,10]
[356628092,1742850645728,-1568.1875,0.00046375,2]
[356628093,1742850645737,-313.8384,0.00046375,2]
[356628094,1742850645745,-150.0,0.00046429,2]
[356628095,1742850645755,-253.762,0.00046474,77]
[356628096,1742850645764,-285.2452,0.00046475,2]
[356628097,1742850645773,-150.0,0.00046574,120]
[356628098,1742850645783,-500.0,0.00046575,120]
[356628099,1742850645792,-500.0,0.00046575,120]
[356628100,1742850645802,-1010.21,0.00046575,120]
[356628101,1742850645811,-500.0,0.00046575,120]
[356628102,1742850645820,-500.0,0.00046575,120]
[356628103,1742850645829,-519.41052912,0.00046575,120]
[356628104,1742850645839,-500.0,0.00046575,120]
[356628105,1742850645848,-500.0,0.00046575,120]
[356628106,1742850645857,-500.0,0.00046575,120]
[356628107,1742850645866,-500.0,0.00046575,120]
[356628108,1742850645876,-300.0,0.00046575,30]
[356628109,1742850645886,-500.0,0.00046575,120]
[356628110,1742850645895,-500.0,0.00046575,120]
[356628111,1742850645904,-559.96464512,0.00046575,120]
[356628112,1742850645913,-591.06436238,0.00046575,120]
[356628113,1742850645923,-270.8079778,0.00046575,120]
[356628114,1742850645933,-256.59098321,0.00046575,120]
[356628115,1742850645943,-551.13295672,0.00046575,120]
[356628116,1742850645953,-500.0,0.00046575,120]
[356628117,1742850645962,-600.70836278,0.00046575,120]
[356628118,1742850645976,-500.0,0.00046575,120]
[356628119,1742850645985,-500.0,0.00046575,120]
[356628121,1742850645994,-500.0,0.00046575,120]
[356628123,1742850646003,-500.0,0.00046575,120]
[356628125,1742850646013,-500.0,0.00046575,120]
[356628127,1742850646023,-500.0,0.00046575,120]
[356628129,1742850646032,-500.0,0.00046575,120]
[356628131,1742850646041,-520.43870936,0.00046575,120]
[356628133,1742850646051,-500.0,0.00046575,7]
[356628135,1742850646061,-306.84875372,0.00046575,120]
[356628137,1742850646070,-500.0,0.00046575,120]
[356628139,1742850646080,-500.0,0.00046575,120]
[356628141,1742850646089,-500.0,0.00046575,120]
[356628143,1742850646098,-500.0,0.00046575,120]
[356628145,1742850646107,-250.75497622,0.00046575,120]
[356628147,1742850646116,-500.0,0.00046575,120]
[356628149,1742850646125,-500.0,0.00046575,120]
[356628151,1742850646134,-500.0,0.00046575,120]
[356628153,1742850646144,-500.0,0.00046575,120]
[356628155,1742850646153,-178.24094254,0.00046575,120]
[356628157,1742850646162,-500.0,0.00046575,120]
[356628159,1742850646173,-500.0,0.00046575,120]
[356628161,1742850646183,-500.0,0.00046575,120]
[356628163,1742850646191,-500.0,0.00046575,120]
[356628165,1742850646201,-500.0,0.00046575,120]
[356628167,1742850646210,-500.0,0.00046575,120]
[356628181,1742850646340,-625.83228946,0.00046575,120]
[356628184,1742850646353,-500.0,0.00046575,120]
[356628186,1742850646363,-500.0,0.00046575,120]
[356628188,1742850646372,-500.0,0.00046575,120]
[356628190,1742850646381,-500.0,0.00046575,120]
[356628192,1742850646391,-500.0,0.00046575,120]
[356628194,1742850646400,-500.0,0.00046575,120]
[356628196,1742850646409,-500.0,0.00046575,120]
[356628198,1742850646418,-500.0,0.00046575,120]
[356628200,1742850646427,-2055.3192,0.00046604,2]
[356628202,1742850646436,-1000.0,0.00046649,2]
[356628204,1742850646445,-1271.0,0.00046704,30]
[356628206,1742850646455,-460.3358,0.00046736,2]
[356628208,1742850646464,-12285.93041586,0.00046749,2]
[356628313,1742851554029,813.192,0.00025,60]
[356628316,1742851654104,200.0,0.000116,4]
[356628317,1742851656166,500.0,0.000117,4]
[356628318,1742851658339,700.0,0.000118,4]
[356628319,1742851660394,1000.0,0.000119,4]
[356628320,1742851679010,528.0,0.0001,2]
[356628321,1742851679043,138822.77702219,0.0001,2]
[356628322,1742851679073,146119.77317432,0.0001,2]
[356628340,1742851831730,-855.60425003,0.0001188,2]
[356628344,1742851831804,-696.62044734,0.0001188,2]
[356628345,1742851831848,-600.75630244,0.0001188,2]
[356628346,1742851831858,-159.50722304,0.000119,2]
[356628347,1742851831909,-11.85549788,0.000119,2]
[356628348,1742851831918,-6409.7961,0.000119,2]
[356628349,1742851831928,-76560.64927212,0.00012,2]
[356628350,1742851831970,-74835.52320145,0.00012,2]
[356628351,1742851831981,-3059.95859964,0.00012,2]
[356628352,1742851831996,-4050.0,0.00012,2]
[356628353,1742851832008,-2719.999997,0.00012,2]